bitfinex/quotes_ETHUSD_20220731
["timestamp","ask_amount","ask_price","bid_price","bid_amount"]
[1659301731833,6.32133789,1719.6,1718.9,3.50565301]
[1659301732180,0.65010222,1719.6,1719.0,0.17598436]
[1659301732939,0.65010222,1719.6,1719.0,3.67598436]
[1659301733366,0.65010222,1719.6,1719.1,0.61793671]
[1659301733570,0.05,1719.8,1719.2,3.5]
[1659301733740,0.05,1719.9,1719.3,6.9362]
[1659301733957,0.00602824,1719.7,1719.5,3.5]
[1659301734138,0.00602824,1719.7,1719.6,7.9361]
[1659301734339,0.00602824,1719.7,1719.6,8.11208436]
[1659301734671,0.05,1720.1,1719.7,7.0]
[1659301734875,0.05,1720.4,1719.9,3.5]
[1659301735184,0.05,1720.6,1720.1,3.5]
[1659301735388,0.05,1720.8,1720.2,2.89804672]
[1659301735572,12.8922,1721.3,1720.7,3.5]
[1659301735573,0.05,1720.9,1720.7,3.5]
[1659301735774,0.05,1721.3,1720.8,3.0]
[1659301735976,12.38289723,1721.5,1720.6,0.05]
[1659301736189,6.5487,1721.4,1720.6,0.05]
[1659301736346,6.5987,1721.4,1720.5,0.05]
[1659301736747,3.0,1721.3,1720.5,0.05]
[1659301737049,0.44108787,1721.2,1720.4,0.05]
[1659301737253,0.35010222,1721.2,1720.4,2.89804672]
[1659301737696,0.35366133,1721.2,1720.4,2.89804672]
[1659301738509,0.35010222,1721.2,1720.3,0.486]
[1659301738696,0.7358,1721.1,1720.3,6.88404672]
[1659301738904,0.65,1721.1,1720.3,6.83404672]
[1659301739081,0.65,1721.1,1720.3,7.01003108]
[1659301739283,0.35,1721.1,1720.4,5.89804672]
[1659301739467,0.0035592,1721.1,1720.5,2.89804672]
[1659301739670,2.89804672,1721.0,1720.5,0.28550125]
[1659301739884,3.19804672,1721.0,1720.3,3.05]
[1659301740084,3.34804672,1721.0,1720.3,3.775]
[1659301740291,3.34804672,1721.0,1720.3,0.775]
[1659301740498,0.98910222,1720.9,1720.3,3.775]
[1659301741724,0.98910222,1720.9,1720.5,4.275]
[1659301741725,0.639,1720.9,1720.5,4.275]
[1659301741922,0.339,1720.9,1720.6,0.8639]
[1659301742151,0.339,1720.9,1720.6,4.38688436]
[1659301742353,0.339,1720.9,1720.7,0.17598436]
[1659301742538,0.339,1720.9,1720.7,0.164]
[1659301742751,0.639,1720.9,1720.7,0.164]
[1659301743324,0.639,1720.9,1720.3,3.55]
[1659301743325,0.282,1720.7,1720.3,0.075]
[1659301743567,0.15,1720.5,1720.3,0.037]
[1659301743890,2.211,1720.5,1720.3,0.037]
[1659301745070,2.211,1720.5,1720.3,3.529]
[1659301747741,2.211,1720.5,1720.3,0.529]
[1659301752378,2.211,1720.5,1720.3,3.529]
[1659301752562,0.343,1720.5,1720.3,3.529]
[1659301756072,0.343,1720.5,1720.3,0.529]
[1659301756486,0.343,1720.5,1720.3,3.529]
[1659301756684,0.343,1720.5,1720.3,0.529]
[1659301757118,0.343,1720.5,1720.3,3.529]
[1659301761637,0.343,1720.5,1720.3,0.529]
[1659301762140,0.343,1720.5,1720.3,3.529]
[1659301763819,0.343,1720.5,1720.4,8.39804672]
[1659301764027,0.343,1720.5,1720.4,15.94774543]
[1659301764233,0.343,1720.5,1720.4,16.38364543]
[1659301764436,0.343,1720.5,1720.4,15.94774543]
[1659301765347,0.343,1720.5,1720.4,12.44774543]
[1659301765553,0.343,1720.5,1720.4,15.94774543]
[1659301767610,0.343,1720.5,1720.4,12.44774543]
[1659301767818,0.343,1720.5,1720.4,15.94774543]
[1659301768837,0.343,1720.5,1720.4,12.44774543]
[1659301769226,0.343,1720.5,1720.4,15.94774543]
[1659301769625,0.343,1720.5,1720.4,10.44774543]
[1659301771551,0.343,1720.5,1720.4,6.94774543]
[1659301771926,0.343,1720.5,1720.4,10.44774543]
[1659301772234,0.343,1720.5,1720.4,0.529]
[1659301772622,0.3,1720.5,1720.4,0.529]
[1659301772921,6.0,1720.5,1720.4,0.529]
[1659301773121,6.3,1720.5,1720.4,0.529]
[1659301773350,9.8,1720.5,1720.4,0.529]
[1659301773529,12.89804672,1720.5,1720.4,0.529]
[1659301773755,12.83394672,1720.5,1720.4,0.529]
[1659301774260,0.2,1720.1,1720.0,0.05]
[1659301774467,0.2,1720.1,1719.6,0.05]
[1659301774677,0.2,1720.1,1719.5,8.0166]
[1659301775029,0.393,1720.1,1719.5,14.41464672]
[1659301775257,0.193,1720.1,1719.6,5.89804672]
[1659301775458,0.193,1720.1,1719.6,6.33414672]
[1659301775997,0.193,1720.1,1719.6,6.79376583]
[1659301776700,0.193,1720.1,1719.6,6.35766583]
[1659301777895,0.193,1720.1,1719.6,6.64825673]
[1659301778097,0.193,1720.1,1719.6,7.08435673]
[1659301778755,0.193,1720.1,1719.6,3.64825673]
[1659301779199,0.193,1720.1,1719.6,5.10124443]
[1659301780031,0.193,1720.1,1719.7,3.0]
[1659301780342,0.193,1720.1,1719.7,3.2906023]
[1659301780701,0.193,1720.1,1719.8,2.89804672]
[1659301781420,0.193,1720.1,1719.9,6.39804672]
[1659301781619,0.193,1720.1,1720.0,5.89804672]
[1659301784625,0.193,1720.1,1720.0,5.84804672]
[1659301787262,0.193,1720.1,1720.0,2.95]
[1659301787433,0.193,1720.1,1720.0,5.84804672]
[1659301789338,0.193,1720.1,1720.0,2.95]
[1659301789537,0.193,1720.1,1719.9,4.45273]
[1659301790979,0.25,1720.5,1719.9,4.45273]
[1659301790980,0.292,1720.5,1720.0,17.74276107]
[1659301791306,0.292,1720.5,1720.1,6.19804672]
[1659301791307,0.242,1720.5,1720.1,6.19804672]
[1659301791670,0.242,1720.5,1720.1,6.24276107]
[1659301792985,0.242,1720.5,1720.2,6.39804672]
[1659301793215,0.242,1720.5,1720.3,6.24276107]
[1659301793516,0.142,1720.5,1720.3,6.24276107]
[1659301794134,0.142,1720.5,1720.3,6.25490813]
[1659301796030,0.142,1720.5,1720.3,3.35686141]
[1659301796236,0.142,1720.5,1720.4,3.0]
[1659301796398,0.142,1720.5,1720.3,0.35686141]
[1659301797051,2.209,1720.5,1720.0,0.05]
[1659301797224,0.393,1720.2,1719.8,1.05]
[1659301797395,0.393,1720.2,1719.8,1.0]
[1659301801659,0.393,1720.2,1719.8,2.45288]
[1659301802059,0.193,1720.2,1719.9,0.36073992]
[1659301802287,0.193,1720.2,1719.9,6.86073992]
[1659301802486,0.193,1720.2,1720.0,4.35072672]
[1659301803551,0.193,1720.2,1720.0,1.45268]
[1659301803789,0.193,1720.2,1719.9,3.36073992]
[1659301807689,0.193,1720.2,1720.0,3.0]
[1659301807890,0.193,1720.2,1719.9,0.36073992]
[1659301813272,0.193,1720.2,1719.9,0.53672428]
[1659301813441,0.193,1720.2,1719.9,3.53672428]
[1659301813919,0.193,1720.2,1719.9,3.82726908]
[1659301814838,0.193,1720.2,1720.0,1.45272]
[1659301816268,0.193,1720.2,1719.9,1.98955428]
[1659301816456,0.193,1720.2,1720.0,0.17598436]
[1659301819801,0.193,1720.2,1720.0,1.62879436]
[1659301825019,0.193,1720.2,1720.0,0.17598436]
[1659301825221,0.193,1720.2,1719.9,0.36073992]
[1659301826016,0.193,1720.2,1719.9,1.81367992]
[1659301828537,0.193,1720.2,1719.9,1.98966428]
[1659301829738,0.193,1720.2,1719.9,2.28024988]
[1659301830775,0.193,1720.2,1720.0,1.45287]
[1659301834607,0.193,1720.2,1720.1,11.1066704]
[1659301834804,0.193,1720.2,1720.1,17.00471712]
[1659301834805,0.19094414,1720.2,1720.1,17.00471712]
[1659301835010,0.19094414,1720.2,1720.1,25.71863712]
[1659301836915,0.19094414,1720.2,1720.1,27.17100712]
[1659301837121,0.19094414,1720.2,1720.1,27.23346861]
[1659301838407,0.19094414,1720.2,1720.1,23.73346861]
[1659301838595,0.19094414,1720.2,1720.1,27.23346861]
[1659301840736,0.19094414,1720.2,1720.1,23.73346861]
[1659301840895,0.19094414,1720.2,1720.1,27.23346861]
[1659301852340,0.19094414,1720.2,1720.1,18.51954861]
[1659301854354,2.278,1721.0,1720.2,8.0]
[1659301854558,2.278,1721.0,1720.5,0.3]
[1659301854767,2.278,1721.0,1720.6,4.35015672]
[1659301855280,2.278,1721.0,1720.8,1.45195]
[1659301855443,2.278,1721.0,1720.7,3.02487905]
[1659301856236,2.278,1721.0,1720.7,3.04569379]
[1659301857044,2.278,1721.0,1720.7,4.67380815]
[1659301857242,2.278,1721.0,1720.7,3.22167815]
[1659301857442,2.278,1721.0,1720.7,6.12570815]
[1659301857676,2.278,1721.0,1720.7,6.41613525]
[1659301858103,2.278,1721.0,1720.8,1.45202]
[1659301858317,2.278,1721.0,1720.9,2.89804672]
[1659301858610,2.278,1721.0,1720.9,5.97804108]
[1659301858772,2.278,1721.0,1720.9,8.97804108]
[1659301859378,2.278,1721.0,1720.7,0.02081474]
[1659301860210,2.278,1721.0,1720.6,0.0208074]
[1659301860413,2.278,1721.0,1720.6,2.91885412]
[1659301861979,2.278,1721.0,1720.7,3.0]
[1659301862709,2.578,1721.0,1720.7,3.0]
[1659301863512,2.578,1721.0,1720.6,0.0208074]
[1659301863717,2.578,1721.0,1720.6,3.0208074]
[1659301863900,2.578,1721.0,1720.6,0.0208074]
[1659301864275,2.578,1721.0,1720.7,0.02116762]
[1659301864612,2.578,1721.0,1720.7,0.31161472]
[1659301864789,2.578,1721.0,1720.8,1.45223]
[1659301864977,2.578,1721.0,1720.8,3.1950057]
[1659301868276,2.578,1721.0,1720.8,1.7427757]
[1659301870981,2.578,1721.0,1720.8,3.1950357]
[1659301877733,2.778,1721.0,1720.8,3.1950357]
[1659301878530,2.778,1721.0,1720.8,1.7427757]
[1659301878744,2.5753428,1721.0,1720.8,1.7427757]
[1659301880448,2.5753428,1721.0,1720.8,3.1950157]
[1659301881591,2.5753428,1721.0,1720.8,6.0993357]
[1659301882971,2.5753428,1721.0,1720.8,7.5514982]
[1659301888597,2.5753428,1721.0,1720.8,4.6471782]
[1659301888771,2.278,1721.0,1720.8,4.82316256]
[1659301891012,2.278,1721.0,1720.9,1.45216]
[1659301892255,2.278,1721.0,1720.9,1.49448535]
[1659301893258,2.228,1721.0,1720.9,1.49448535]
[1659301895988,2.228,1721.0,1720.9,1.93690163]
[1659301897272,2.228,1721.0,1720.9,1.99092734]
[1659301897786,2.228,1721.0,1720.9,2.1669117]
[1659301898952,2.228,1721.0,1720.9,8.56495842]
[1659301899148,2.228,1721.0,1720.9,11.56495842]
[1659301899958,2.128,1721.0,1720.9,8.06495842]
[1659301902983,2.028,1721.0,1720.9,8.06495842]
[1659301904581,2.028,1721.0,1720.9,8.50075842]
[1659301904794,2.028,1721.0,1720.9,12.00075842]
[1659301905370,1.928,1721.0,1720.9,12.00075842]
[1659301906799,1.928,1721.0,1720.9,8.50075842]
[1659301907009,1.928,1721.0,1720.9,12.00075842]
[1659301908466,0.516,1721.0,1720.9,12.00075842]
[1659301909171,0.416,1721.0,1720.9,12.00075842]
[1659301912142,0.316,1721.0,1720.9,11.56495842]
[1659301912719,0.72885791,1721.0,1720.9,11.5521068]
[1659301914304,0.33144182,1721.1,1720.9,11.5521068]
[1659301914565,0.05,1721.5,1721.0,5.89804672]
[1659301914805,3.55,1721.7,1721.2,4.35501]
[1659301915009,3.5,1721.7,1721.3,3.0]
[1659301915773,3.5,1721.7,1721.4,1.45167]
[1659301916391,3.5,1721.7,1721.4,3.1936624]
[1659301916604,14.8288,1721.8,1721.4,3.1936624]
[1659301916802,8.91623,1721.8,1721.5,1.45166]
[1659301916976,8.91623,1721.8,1721.5,3.1936524]
[1659301917530,0.89033,1721.8,1721.6,1.45166]
[1659301917817,0.89033,1721.8,1721.6,3.1936816]
[1659301920430,0.89033,1721.8,1721.7,0.07422534]
[1659301922430,1.52593,1721.8,1721.7,0.07422534]
[1659301922638,1.29033,1721.8,1721.7,0.07422534]
[1659301923225,1.09033,1721.8,1721.7,0.07422534]
[1659301925732,0.4,1721.4,1721.3,0.05]
[1659301925932,3.4,1721.0,1720.9,0.05]
[1659301926164,3.4,1721.0,1720.6,1.0]
[1659301926165,3.0,1721.0,1720.6,1.0]
[1659301926941,0.2,1721.2,1720.6,1.0]
[1659301927131,0.2,1721.2,1720.6,4.0]
[1659301927372,0.2,1721.1,1720.6,4.06798467]
[1659301927827,22.43528751,1721.3,1720.6,4.06798467]
[1659301928031,22.38528751,1721.3,1720.7,0.1016506]
[1659301929233,22.98528751,1721.3,1720.7,0.1016506]
[1659301930273,22.98528751,1721.3,1720.7,1.5538606]
[1659301930441,22.78528751,1721.3,1720.7,4.58786196]
[1659301930767,23.07572751,1721.3,1720.7,4.87830736]
[1659301930973,23.51142751,1721.3,1720.7,1.87830736]
[1659301931183,23.07572751,1721.3,1720.7,1.87830736]
[1659301931351,23.07572751,1721.3,1720.8,1.45219]
[1659301932005,17.46444,1721.3,1720.8,1.45219]
[1659301932591,17.46444,1721.3,1720.8,1.48625855]
[1659301932965,0.29044,1721.2,1720.8,1.48625855]
[1659301933702,0.29044,1721.2,1720.9,1.45222]
[1659301935474,0.29044,1721.2,1720.9,1.4861116]
[1659301936476,0.29044,1721.2,1720.9,1.52016714]
[1659301937703,15.0616,1721.3,1721.0,1.45215]
[1659301937907,0.3,1721.3,1721.0,1.45215]
[1659301938210,0.3,1721.3,1721.0,1.62813436]
[1659301938413,0.3,1721.3,1721.0,1.97793036]
[1659301938611,19.9244,1721.6,1721.0,1.97793036]
[1659301938862,20.1744,1721.6,1721.1,0.2903691]
[1659301939026,20.4744,1721.6,1721.1,1.7421791]
[1659301939432,14.3006,1721.6,1721.1,1.7421791]
[1659301940530,14.3006,1721.6,1721.1,1.77500434]
[1659301941167,14.3006,1721.6,1721.2,1.7422329]
[1659301941375,14.59097,1721.6,1721.2,0.2903729]
[1659301941727,14.59097,1721.6,1721.3,1.45186]
[1659301941928,0.59037,1721.6,1721.3,1.45186]
[1659301942328,0.29037,1721.5,1721.3,1.48462663]
[1659301943244,0.29037,1721.5,1721.3,1.77499953]
[1659301943453,0.6,1721.6,1721.4,0.03265407]
[1659301943648,0.3,1721.6,1721.4,0.03265407]
[1659301944689,0.3,1721.6,1721.4,1.48442407]
[1659301945242,0.3,1721.6,1721.4,1.77478227]
[1659301945444,0.29037,1721.7,1721.4,1.77478227]
[1659301945681,0.29037,1721.7,1721.5,1.45174]
[1659301945844,0.29033,1721.8,1721.5,1.45174]
[1659301946045,3.18837672,1721.8,1721.5,1.45174]
[1659301946775,3.48837672,1721.8,1721.5,1.7420762]
[1659301946994,3.78837672,1721.8,1721.6,1.45165]
[1659301947649,3.73837672,1721.8,1721.6,1.45165]
[1659301948509,3.73837672,1721.8,1721.6,1.48446135]
[1659301950514,3.73837672,1721.8,1721.6,1.51708399]
[1659301952043,0.55,1721.8,1721.6,1.51708399]
[1659301952213,5.64171519,1721.8,1721.6,1.80740029]
[1659301952399,5.34171519,1721.8,1721.7,1.45158]
[1659301952601,9.09252,1721.9,1721.7,1.45158]
[1659301952920,11.99056672,1721.9,1721.7,1.45158]
[1659301953075,3.78836672,1721.9,1721.7,1.7418963]
[1659301953477,0.29032,1721.9,1721.7,1.7418963]
[1659301953678,0.3,1722.0,1721.8,3.5]
[1659301953928,0.3,1722.0,1721.7,3.17598436]
[1659301954237,0.3,1722.0,1721.8,0.00966333]
[1659301954374,0.3,1722.0,1721.8,0.35437768]
[1659301954575,3.19804672,1722.0,1721.7,0.17598436]
[1659301954777,3.49804672,1722.0,1721.6,0.09801734]
[1659301955183,3.79804672,1722.0,1721.6,0.09801734]
[1659301955385,2.89804672,1721.9,1721.8,0.0653194]
[1659301960361,2.89804672,1721.9,1721.8,0.0978858]
[1659301961251,19.53388672,1722.0,1721.8,0.0978858]
[1659301961415,18.08209672,1722.0,1721.8,0.0978858]
[1659301961854,18.08209672,1722.0,1721.8,1.5494358]
[1659301962015,4.08839672,1722.0,1721.8,1.5494358]
[1659301963694,4.08839672,1722.0,1721.8,0.0978858]
[1659301965559,0.59035,1722.0,1721.8,5.0493858]
[1659301965761,0.3,1722.0,1721.8,0.0978858]
[1659301966357,0.3,1722.0,1721.8,0.5465353]
[1659301966905,0.3,1722.0,1721.8,3.44458202]
[1659301967172,0.05,1722.4,1721.9,14.23664672]
[1659301967332,0.05254386,1722.6,1722.0,6.39804672]
[1659301967624,0.05254386,1722.6,1722.1,3.4355]
[1659301967625,0.00254386,1722.6,1722.1,3.4355]
[1659301967828,19.53695,1722.8,1722.1,0.4355]
[1659301967984,5.51964025,1722.2,1722.0,0.49863743]
[1659301968188,5.51964025,1722.2,1722.0,0.44863743]
[1659301968499,5.51964025,1722.2,1721.8,3.5334858]
[1659301968695,17.8478,1722.5,1722.1,0.0101039]
[1659301968878,14.8978,1722.5,1722.1,0.0101039]
[1659301969078,2.89804672,1722.4,1722.1,0.0101039]
[1659301969424,2.89804672,1722.4,1722.0,0.09453316]
[1659301971613,2.89804672,1722.4,1722.0,0.38478316]
[1659301972865,2.89804672,1722.4,1722.0,1.83602316]
[1659301973165,2.89804672,1722.4,1722.0,0.38478316]
[1659301973726,2.89804672,1722.4,1722.1,1.45125]
[1659301974256,2.89804672,1722.4,1722.2,0.29025]
[1659301975265,11.97309672,1722.5,1722.2,1.74142]
[1659301975494,3.78829672,1722.5,1722.2,1.74142]
[1659301975700,3.78829672,1722.5,1722.2,2.0316507]
[1659301976104,3.78829672,1722.5,1722.3,3.19252]
[1659301977891,3.48829672,1722.5,1722.3,0.29023]
[1659301978512,3.48829672,1722.5,1722.3,0.3217943]
[1659301979522,2.89804672,1722.4,1722.3,0.3217943]
[1659301979910,3.19804672,1722.4,1722.3,0.0315643]
[1659301980437,3.19804672,1722.4,1722.2,0.35213004]
[1659301980438,3.19804672,1722.4,1722.2,0.29152209]
[1659301980611,2.81439905,1722.2,1721.9,0.05]
[1659301980817,2.81439905,1722.2,1721.6,1.45139]
[1659301980818,0.2,1722.0,1721.6,0.05]
[1659301981024,0.2,1722.0,1721.4,2.9535]
[1659301981025,2.89804672,1721.9,1721.4,2.9535]
[1659301981197,3.49804672,1721.9,1721.3,6.3584]
[1659301981846,3.49804672,1721.9,1721.3,0.4357]
[1659301982003,3.49804672,1721.9,1721.4,0.29035]
[1659301983042,2.89804672,1721.8,1721.4,0.29035]
[1659301983554,2.89804672,1721.8,1721.4,4.74208]
[1659301983754,2.89804672,1721.8,1721.4,3.580696]
[1659301983909,2.89804672,1721.8,1721.4,0.580696]
[1659301984111,3.18839672,1721.8,1721.4,0.580696]
[1659301984416,3.7449,1721.9,1721.6,0.2903]
[1659301984754,6.64294672,1721.9,1721.6,0.2903]
[1659301984925,6.64294672,1721.9,1721.6,0.46628436]
[1659301985132,3.7449,1721.9,1721.7,4.35409]
[1659301985449,14.293,1722.1,1721.7,4.64439]
[1659301985624,3.19804672,1722.0,1721.7,0.5805796]
[1659301985833,3.19804672,1722.0,1721.8,1.45139]
[1659301986043,3.19804672,1722.0,1721.8,3.19309]
[1659301986476,0.3,1722.0,1721.8,3.4833595]
[1659301986771,8.3519,1722.1,1721.9,1.4513]
[1659301986930,3.49804672,1722.1,1721.9,4.6439401]
[1659301988123,2.89804672,1722.1,1721.9,4.6439401]
[1659301988349,12.96016,1722.3,1721.9,6.3855001]
[1659301988665,2.89804672,1722.2,1722.0,1.45131]
[1659301989327,0.29026,1722.3,1722.0,1.45131]
[1659301989528,0.29026,1722.3,1722.0,3.19287]
[1659301989827,0.29026,1722.3,1722.1,1.45129]
[1659301992566,0.29026,1722.3,1722.0,2.06236766]
[1659301992771,0.29026,1722.3,1722.2,0.0301809]
[1659301994069,9.30130672,1722.3,1722.2,0.0301809]
[1659301994245,9.60130672,1722.3,1722.2,0.0301809]
[1659301996855,15.90447435,1722.3,1722.2,0.0301809]
[1659301997074,16.10447435,1722.3,1722.2,0.0301809]
[1659301997514,0.2,1722.2,1722.1,0.00088132]
[1659301997663,3.04804672,1722.2,1722.1,0.00088132]
[1659301997846,2.89804672,1722.2,1722.1,0.00088132]
[1659301998557,0.15,1721.9,1721.7,0.34036]
[1659301998761,2.89804672,1721.8,1721.4,0.05]
[1659301998971,2.91011013,1721.6,1721.1,0.05]
[1659301999160,2.91011013,1721.6,1721.0,0.78051435]
[1659301999366,3.21011013,1721.6,1721.0,0.78051435]
[1659301999565,3.21011013,1721.6,1721.2,0.29039]
[1659301999566,0.3,1721.6,1721.2,0.29039]
[1659301999773,20.74744672,1721.8,1721.2,0.29039]
[1659301999941,2.89804672,1721.7,1721.2,0.29039]
[1659302000153,0.15,1721.6,1721.2,0.29039]
[1659302000943,0.15,1721.6,1721.2,1.74226]
[1659302001144,0.15,1721.6,1721.2,0.29039]
[1659302001476,0.15,1721.6,1721.3,1.74222]
[1659302001678,3.19804672,1721.7,1721.4,1.45177]
[1659302002397,3.19804672,1721.7,1721.4,2.0324757]
[1659302002567,3.19804672,1721.7,1721.4,0.29035]
[1659302002893,3.19804672,1721.7,1721.5,1.45171]
[1659302005395,3.19804672,1721.7,1721.6,0.02766262]
[1659302006493,2.89804672,1721.7,1721.6,0.02766262]
[1659302007088,2.89804672,1721.7,1721.6,1.47931262]
[1659302007314,15.9233,1722.1,1721.6,0.02766262]
[1659302007663,3.49804672,1722.0,1721.6,0.37237697]
[1659302008738,0.29036,1721.8,1721.6,0.37237697]
[1659302009056,0.89036,1721.8,1721.6,3.56619697]
[1659302011641,0.89036,1721.8,1721.6,3.61619697]
[1659302011845,0.29036,1721.8,1721.6,3.61619697]
[1659302012059,0.29036,1721.8,1721.6,3.90654117]
[1659302013549,0.29036,1721.8,1721.7,0.02694431]
[1659302013780,0.29036,1721.8,1721.7,0.02306109]
[1659302015670,0.59036,1721.8,1721.7,0.02306109]
[1659302016419,0.3,1722.0,1721.7,0.02306109]
[1659302016595,9.914,1722.1,1721.7,4.66780109]
[1659302016797,13.11204672,1722.1,1721.7,4.66780109]
[1659302017168,0.2903,1722.0,1721.7,4.66780109]
[1659302017388,0.2903,1722.0,1721.7,4.69485382]
[1659302017793,0.2903,1722.0,1721.8,3.19323]
[1659302018014,0.2903,1722.0,1721.8,3.4835273]
[1659302018677,3.49804672,1722.1,1721.8,3.5335273]
[1659302018876,3.49804672,1722.1,1721.8,3.4832273]
[1659302019088,0.6,1722.1,1721.8,3.4832273]
[1659302019305,8.4544,1722.2,1721.8,3.1929873]
[1659302019505,11.35244672,1722.2,1722.0,0.290253]
[1659302019784,3.49804672,1722.2,1722.0,1.741513]
[1659302020317,0.59028,1722.2,1722.0,1.741513]
[1659302020493,3.29028,1722.2,1722.0,1.741513]
[1659302020929,0.29028,1722.2,1722.0,1.741513]
[1659302021389,0.29028,1722.2,1722.0,1.7415332]
[1659302022527,0.29028,1722.2,1722.0,1.8228668]
[1659302022897,0.29028,1722.2,1722.0,3.2741268]
[1659302023334,0.89025,1722.3,1722.0,3.2741268]
[1659302023541,0.89025,1722.3,1722.1,1.45125]
[1659302024826,0.89025,1722.3,1722.1,1.7415003]
[1659302025342,0.59025,1722.3,1722.1,1.7415003]
[1659302025546,0.29025,1722.3,1722.1,1.7415003]
[1659302025715,0.59025,1722.3,1722.1,1.7415003]
[1659302025918,0.29025,1722.3,1722.1,1.7415003]
[1659302031776,0.89025,1722.3,1722.1,1.7415003]
[1659302032869,2.34165,1722.3,1722.1,1.45125]
[1659302033079,0.3,1722.3,1722.1,1.45125]
[1659302033291,8.2888,1722.5,1722.1,1.45125]
[1659302033442,11.48684672,1722.5,1722.1,1.45125]
[1659302033640,1.4514,1722.3,1722.2,0.02616162]
[1659302033854,1.7514,1722.3,1722.2,1.76775162]
[1659302034063,2.0514,1722.3,1722.2,0.02616162]
[1659302034754,2.0514,1722.3,1722.2,0.02308185]
[1659302035006,2.0514,1722.3,1722.2,1.47440185]
[1659302036629,0.6,1722.3,1722.2,1.47440185]
[1659302036804,0.6,1722.3,1722.2,0.02308185]
[1659302037127,0.3,1722.3,1722.2,0.02308185]
[1659302040263,5.92680681,1722.3,1722.2,0.02308185]
[1659302040473,6.22680681,1722.3,1722.2,0.02308185]
[1659302045793,0.6,1722.3,1722.2,0.02308185]
[1659302045959,0.3,1722.3,1722.2,0.02308185]
[1659302046951,3.19804672,1722.3,1722.2,0.02308185]
[1659302047154,3.49804672,1722.3,1722.2,0.02308185]
[1659302048687,9.61104672,1722.3,1722.2,0.02308185]
[1659302052397,3.49804672,1722.3,1722.2,0.02308185]
[1659302053053,0.3,1722.3,1722.2,0.02308185]
[1659302053254,13.7217,1722.4,1722.2,1.76460185]
[1659302053493,11.95862672,1722.4,1722.2,0.31333185]
[1659302053715,11.95862672,1722.4,1722.2,0.02308185]
[1659302054229,8.45862672,1722.4,1722.2,0.02308185]
[1659302054382,11.95862672,1722.4,1722.2,0.02308185]
[1659302055481,9.91016672,1722.4,1722.2,0.02308185]
[1659302055998,9.91016672,1722.4,1722.2,1.18445585]
[1659302056687,8.45862672,1722.4,1722.2,1.18445585]
[1659302059107,8.45870672,1722.4,1722.2,1.18445585]
[1659302069570,11.77412031,1722.3,1722.2,1.18445585]
[1659302069744,12.07412031,1722.3,1722.2,1.18445585]
[1659302070061,3.49804672,1722.3,1722.2,1.18445585]
[1659302071376,9.31571642,1722.3,1722.2,1.18445585]
[1659302075946,0.3,1722.3,1722.2,1.18445585]
[1659302076262,10.00547262,1722.6,1722.2,1.47464585]
[1659302076466,3.60267262,1722.6,1722.3,4.35288]
[1659302076776,0.00267262,1722.6,1722.3,4.3493558]
[1659302076990,0.29286262,1722.6,1722.3,6.3807007]
[1659302077142,0.00267262,1722.6,1722.4,4.35292]
[1659302077340,3.2936,1722.8,1722.4,4.6431]
[1659302077554,6.48183672,1722.8,1722.4,1.74115]
[1659302077754,6.48183672,1722.8,1722.5,1.451]
[1659302077990,6.48450803,1722.8,1722.5,1.7412085]
[1659302078154,7.93555803,1722.8,1722.5,1.7412085]
[1659302078368,7.93555803,1722.8,1722.4,1.45113]
[1659302078586,7.93555803,1722.8,1722.4,2.90206]
[1659302078756,7.93288672,1722.8,1722.4,2.90206]
[1659302079185,0.3,1722.6,1722.4,2.90206]
[1659302079497,0.89022,1722.6,1722.4,3.4825002]
[1659302079700,0.29022,1722.6,1722.4,3.4825002]
[1659302080102,4.63938672,1722.6,1722.4,3.19228]
[1659302080288,0.29022,1722.6,1722.4,3.19228]
[1659302080641,0.29022,1722.6,1722.4,4.64326]
[1659302080789,0.29022,1722.6,1722.4,4.9334799]
[1659302081134,0.3,1722.7,1722.4,4.9334799]
[1659302081434,0.3,1722.7,1722.5,1.45096]
[1659302081733,0.3,1722.7,1722.5,1.7411537]
[1659302082029,0.29019,1722.6,1722.5,1.7411537]
[1659302083332,0.29018,1722.8,1722.5,1.7411537]
[1659302083493,10.77877289,1722.9,1722.6,4.35244]
[1659302083729,6.00401961,1722.9,1722.6,1.45081]
[1659302083928,6.29417961,1722.9,1722.6,1.45081]
[1659302084140,6.29110672,1722.9,1722.6,1.45081]
[1659302084363,0.3,1722.8,1722.6,1.45081]
[1659302084668,0.3,1722.8,1722.7,0.29016]
[1659302084972,3.19804672,1722.8,1722.7,0.29016]
[1659302085439,3.19804672,1722.8,1722.5,0.29022]
[1659302085639,0.3,1722.6,1722.5,0.29022]
[1659302085845,0.3,1722.6,1722.4,3.24684435]
[1659302086230,0.59021,1722.6,1722.4,3.24684435]
[1659302086430,0.29021,1722.6,1722.4,3.24684435]
[1659302086858,0.29021,1722.6,1722.4,3.82726975]
[1659302087465,0.29021,1722.6,1722.4,5.27823975]
[1659302087669,0.29021,1722.6,1722.4,5.71363975]
[1659302088167,0.29021,1722.6,1722.4,5.27823975]
[1659302088947,0.59286973,1722.8,1722.4,5.27823975]
[1659302089147,0.59286973,1722.8,1722.5,4.64252]
[1659302089148,0.30269973,1722.8,1722.5,4.64252]
[1659302089368,0.30269973,1722.8,1722.6,1.740886]
[1659302089577,0.3,1722.8,1722.6,1.740886]
[1659302089743,0.3,1722.8,1722.6,3.191616]
[1659302090361,0.3,1722.8,1722.6,4.642336]
[1659302094689,0.3,1722.8,1722.7,0.02790042]
[1659302097483,3.19804672,1722.8,1722.7,0.02790042]
[1659302097894,3.22851345,1722.8,1722.7,0.02790042]
[1659302100403,3.22851345,1722.8,1722.7,0.02531096]
[1659302101596,0.33046673,1722.8,1722.7,0.02531096]